Cogmind - Beta 13 @@@ ROGUE MODE // 2024.06.09 @ 13:36:05 Player: jihakuz Result: Destroyed by G-34 Mercenary with Small Laser Performance ------------- Evolutions (1) 500 Regions Visited (2) 400 Robots Destroyed (12) 60 Value Destroyed (287) 287 Prototype IDs (0) 0 Alien Tech Used (0) 0 Bonus (0) 0 TOTAL SCORE: 1247 Bonus ------- None Cogmind --------- Core Integrity 0/400 Matter 119/300 Energy 100/100 System Corruption 0% Temperature Cool (6) Movement Core (350) Ox6 Location -9/Materials Parts ------- > --- POWER (2) -------- (None) > --- PROPULSION (2) --- (None) > --- UTILITY (2) ------ Large Storage Unit > --- WEAPON (3) ------- (None) > --- INVENTORY (15) --- Light Treads Peak State ------------ > --- POWER ------------ Light Ion Engine > --- PROPULSION ------- Aluminum Leg Aluminum Leg > --- UTILITY ---------- Large Storage Unit Light Armor Plating > --- WEAPON ----------- Beam Rifle Particle Gun Light EM Pulse Cannon > --- INVENTORY -------- Light Treads Light Treads Light EM Pulse Cannon Assault Rifle Assault Rifle Autogun Light Cannon [Rating: 11] Favorites ----------- Power Ion Engine Engine Ion Engine Propulsion Aluminum Leg Treads Light Treads Leg Aluminum Leg Wheel Wheel Utility Large Storage Unit Storage Large Storage Unit Protection Light Armor Plating Weapon Assault Rifle Energy Gun Particle Gun Energy Cannon Light EM Pulse Cannon Ballistic Gun Assault Rifle Ballistic Cannon Improved Light Cannon Build | -11 -10 -9 ------- Run | Yrd Mat Mat Slots Evolved 2 | . . 2 Power 1 | . . 1 Propulsion . | . . . Utility . | . . . Weapon 1 | . . 1 Parts Attached 37 | 9 19 9 Power 3 | 2 1 . Engine 3 | 2 1 . Core . | . . . Reactor . | . . . Propulsion 10 | 4 4 2 Treads 2 | . . 2 Leg 4 | 2 2 . Wheel 4 | 2 2 . Hover . | . . . Flight . | . . . Utility 6 | 1 4 1 Device . | . . . Storage 4 | 1 3 . Processor . | . . . Hackware . | . . . Protection 2 | . 1 1 Artifact . | . . . Weapon 18 | 2 10 6 Energy Gun 2 | . 1 1 Energy Cannon 4 | . 2 2 Ballistic Gun 9 | 2 5 2 Ballistic Cannon 3 | . 2 1 Launcher . | . . . Special Weapon . | . . . Impact Weapon . | . . . Slashing Weapon . | . . . Piercing Weapon . | . . . Special Melee Weapon . | . . . Unidentified Prototypes . | . . . Parts Lost 9 | . . 9 Power 1 | . . 1 Propulsion 1 | . . 1 Utility 1 | . . 1 Weapon 6 | . . 6 Highest Loss Streak 9 | . . 9 To Critical Strikes . | . . . Average Slot Usage (%) 91 | . 96 64 Engine 12 | . 13 6 Leg 24 | . 27 9 Storage 21 | . 23 11 Protection 3 | . 3 6 Energy Gun 3 | . 1 15 Energy Cannon 9 | . 10 1 Ballistic Gun 9 | . 9 7 Ballistic Cannon 5 | . 5 1 Naked Turns . | . . . Heaviest Build 52 | 14 52 34 Greatest Support 40 | 20 20 40 Greatest Overweight (x) 10 | 4 4 10 Average Overweight (x) 1 | 2 1 1 Largest Inventory Capacity 15 | 8 15 15 Average Capacity 13 | 7 14 15 Most Carried 8 | 8 8 7 Average Carried 6 | 6 6 4 Final Capacity 15 | 8 15 15 Final Carried 7 | 6 7 1 Class Distribution -------------------- 92% | Mutant 7% | Tank Dominant Class ---------------- Mutant | -10/Materials Tank | -9/Materials Resources | -11 -10 -9 ----------- Run | Yrd Mat Mat Matter Collected 507 | 164 222 121 Remotely . | . . . Salvage Created 388 | . 275 113 Parts 23 | . 13 10 Haulers Intercepted 1 | . 1 . Recyclers Shooed . | . . . Parts Field Recycled . | . . . Retrieved Matter . | . . . Parts Self-Destructed . | . . . Prevented . | . . . Kills | -11 -10 -9 ------- Run | Yrd Mat Mat Combat Hostiles Destroyed 8 | . 6 2 Melee 1 | . 1 . Guns 4 | . 2 2 Cannons 3 | . 3 . Classes Destroyed 6 | . 5 1 Hauler 1 | . 1 . Recycler 1 | . 1 . Watcher 2 | . 1 1 Swarmer 3 | . 3 . Grunt 4 | . 3 1 Sentry 1 | . . 1 Best Kill Streak 3 | . 3 2 Combat Bots Only 3 | . 3 1 Max Kills in Single Turn 1 | . 1 1 Gunslinging . | . . . Exploded . | . . . Melee 1 | . 1 . Uniques/NPCs Destroyed . | . . . Combat | -11 -10 -9 -------- Run | Yrd Mat Mat Hostile Shots Fired 158 | . 63 95 Missed 30 | . 15 15 Damage Taken 1813 | . 613 1200 Core 525 | . 116 409 Absorbed by Shields . | . . . Core Remaining (%) 76 | 100 53 . Volleys Fired 45 | . 25 20 Largest 3 | . 2 3 Hottest 141 | . 121 141 Shots Fired 84 | . 44 40 Gun 51 | . 16 35 Cannon 33 | . 28 5 Launcher . | . . . Special . | . . . Kinetic 56 | . 34 22 Thermal 19 | . 1 18 Explosive . | . . . Electromagnetic 9 | . 9 . Robot Hit Streak 8 | . 4 8 Robot Miss Streak 4 | . 4 3 Penetration Max . | . . . Secondary Targets . | . . . Shots Hit Robots 44 | . 20 24 Core Hits 21 | . 15 6 Critical Kills . | . . . Critical Parts Destroyed . | . . . Critical Strikes 1 | . . 1 Burn 1 | . . 1 Melee Attacks . | . . . Impact . | . . . Slashing . | . . . Piercing . | . . . Sneak Attacks . | . . . Combat Hostiles . | . . . Follow-up Attacks . | . . . Damage Inflicted 788 | . 415 373 Guns 402 | . 99 303 Cannons 361 | . 291 70 Explosions . | . . . Melee . | . . . Ramming 25 | . 25 . Kinetic 466 | . 274 192 Thermal 181 | . . 181 Explosive . | . . . Electromagnetic 116 | . 116 . Impact . | . . . Slashing . | . . . Piercing . | . . . Highest Corruption . | . . . Average Corruption . | . . . Corruption Purged . | . . . Corruption Blocked . | . . . Overload Shots . | . . . Overflow Damage . | . . . Projectiles . | . . . Explosions . | . . . Melee . | . . . Knockbacks 4 | . 2 2 Impact 1 | . 1 . Kinetic 3 | . 1 2 Secondary . | . . . Self-Inflicted Damage . | . . . Shots . | . . . Rammed . | . . . Targets Rammed 13 | . 13 . Kicked 13 | . 13 . Crushed . | . . . Highest Temperature 328 | . 84 328 Average Temperature 73 | . 27 128 Received Heat Transfer 717 | . 318 399 Effects 3 | . . 3 Interference 3 | . . 3 Siege Activations . | . . . Robots Corrupted . | . . . Combat Hostiles . | . . . Parts Fried . | . . . Impact Corruptions . | . . . Robots Melted . | . . . Combat Hostiles . | . . . Parts Melted 3 | . . 3 Heat Transferred 518 | . . 518 Parts Sabotaged . | . . . Parts Stolen . | . . . Parts Stripped . | . . . Power Chain Reactions . | . . . Alert | -11 -10 -9 ------- Run | Yrd Mat Mat Peak Influence 158 | . 158 84 Initial 12 | . . 12 Average 26 | . 31 28 Maximum Alert Level . | . . . Low Security (%) 100 | 100 100 100 Level 1 . | . . . Level 2 . | . . . Level 3 . | . . . Level 4 . | . . . Level 5 . | . . . High Security . | . . . Max Security . | . . . Squads Dispatched 1 | . 1 . Investigation . | . . . Extermination . | . . . Reinforcement 1 | . 1 . Assault . | . . . Garrison . | . . . Intercept . | . . . Searches Triggered . | . . . Construction Impeded . | . . . Haulers Reinforced . | . . . Active Scanning Responses . | . . . Cargo Convoy Interrupts . | . . . Stealth | -11 -10 -9 --------- Run | Yrd Mat Mat Distress Signals 1 | . . 1 Communications Jammed . | . . . Distress Signals . | . . . Times Spotted 16 | . 10 6 Peak Tracking Total 3 | . 3 3 Tactical Retreats . | . . . Traps | -11 -10 -9 ------- Run | Yrd Mat Mat Traps Triggered 2 | . 2 . Indirectly . | . . . Trap Hack Attempts . | . . . Triggered . | . . . Disarmed . | . . . Reprogrammed . | . . . Reused . | . . . Traps Extracted . | . . . Installed . | . . . Triggered . | . . . Machines | -11 -10 -9 ---------- Run | Yrd Mat Mat Machines Disabled 1 | . 1 . Max in Single Turn 1 | . 1 . Machines Repaired . | . . . Machines Dismantled . | . . . Machines Sabotaged . | . . . Overloaded Fab Kills . | . . . Hacking | -11 -10 -9 --------- Run | Yrd Mat Mat Machines Accessed . | . . . Terminals . | . . . Fabricators . | . . . Repair Stations . | . . . Recycling Units . | . . . Scanalyzers . | . . . Garrison Access . | . . . Total Hacks . | . . . Successful . | . . . Failed . | . . . Catastrophic . | . . . Database Lockouts . | . . . Manual . | . . . Terminals . | . . . Fabricators . | . . . Repair Stations . | . . . Recycling Units . | . . . Scanalyzers . | . . . Garrison Access . | . . . Terminal Hacks . | . . . Fabricator Hacks . | . . . Repair Station Hacks . | . . . Recycling Unit Hacks . | . . . Scanalyzer . | . . . Garrison Access Hacks . | . . . Unauthorized Hacks . | . . . Terminals . | . . . Fabricators . | . . . Repair Stations . | . . . Recycling Units . | . . . Scanalyzers . | . . . Garrison Access . | . . . Data Cores Recovered . | . . . Used . | . . . Hacking Detections . | . . . Full Trace Events . | . . . Feedback Events . | . . . Feedback Blocked . | . . . Robot Schematics Acquired . | . . . Robots Built . | . . . Authchips . | . . . Time . | . . . Total Robot Build Rating . | . . . Part Schematics Acquired . | . . . Parts Built . | . . . Authchips . | . . . Time . | . . . Total Part Build Rating . | . . . Parts Repaired . | . . . Time . | . . . Parts Recycled . | . . . Recycled Matter . | . . . Retrieved Matter . | . . . Retrieved Components . | . . . Parts Scanalyzed . | . . . Part Schematics Acquired . | . . . Parts Damaged . | . . . Bothacking | -11 -10 -9 ------------ Run | Yrd Mat Mat Used RIF Installer . | . . . Robots Hacked . | . . . Non-combat . | . . . Combat . | . . . Robot Hacks Applied . | . . . Relay Couplers Released . | . . . Fabnet Peak Effective % . | . . . Robots Rewired . | . . . Allies Hacked . | . . . Hacks Repelled . | . . . Allies | -11 -10 -9 -------- Run | Yrd Mat Mat Total Allies . | . . . Largest Group . | . . . Highest-Rated Group . | . . . Highest-Rated Ally . | . . . Total Orders . | . . . Ally Attacks . | . . . Total Damage . | . . . Kills . | . . . Allies Corrupted . | . . . Allies Melted . | . . . Intel | -11 -10 -9 ------- Run | Yrd Mat Mat Robot Analysis Total . | . . . Derelict Logs Recovered . | . . . Drone Launches . | . . . Drone Recoveries . | . . . Exploration | -11 -10 -9 ------------- Run | Yrd Mat Mat Turns Passed 1398 | 209 1005 184 Spaces Moved 543 | 110 384 49 Core 61 | 57 . 4 Treads 15 | . . 15 Legs 435 | 25 380 30 Wheels 32 | 28 4 . Hover . | . . . Flight . | . . . Fastest Speed 50 | 50 110 160 Average Speed 214 | 173 227 201 Slowest Speed 550 | 250 260 550 Overloaded Moves . | . . . Propulsion Burnouts . | . . . Robots Hopped . | . . . Cave-ins Triggered . | . . . Exploration Rate (%) 22 | 8 53 6 Regions Visited 2 Branch Regions . Pre-discovered Areas . | . . . Known Exits Taken . | . . . Unknown Exits Taken 2 | 1 1 . Scrap Searched . | . . . Spaces Dug . | . . . Terrain Destroyed 1 | . 1 . Melee . | . . . Projectile 1 | . 1 . AOE . | . . . Terrain Rammed . | . . . Walls Destroyed . | . . . Machines Disabled . | . . . Actions | -11 -10 -9 --------- Run | Yrd Mat Mat Total 690 | 125 464 101 Wait 19 | . . 19 Move 541 | 109 383 49 Hop . | . . . Pick Up 15 | 5 10 . Fast Attach 13 | 6 5 2 Attach 16 | 2 9 5 Detach 7 | 2 5 . Swap 8 | 1 5 2 Drop 13 | . 9 4 Fire 45 | . 25 20 Melee . | . . . Ram . | . . . Kick 13 | . 13 . Crush . | . . . Escape Stasis . | . . . Rewire . | . . . Trap . | . . . Miscellaneous . | . . . Route ------- -11/Scrapyard -10/Materials -9/Materials History --------- Turn | Location | Event 31 | -11/Scrapyard | Discovered new exit (range 14) 210 | -11/Scrapyard | Entered Materials 300 | -10/Materials | Build established: Mutant 1157 | -10/Materials | Discovered new exit (range 4) 1215 | -10/Materials | Entered another Materials area 1215 | -9/Materials | Evolved 2 slots: Power x1, Weapon x1 1363 | -9/Materials | Core integrity fell below 50% 1384 | -9/Materials | Core integrity fell below 20% 1399 | -9/Materials | Destroyed by G-34 Mercenary with Small Laser Last Messages --------------- K-01 Serf collects debris. Lgt. Treads destroyed. K-01 Serf collects debris. R-06 Scavenger collects Sml. Laser. R-06 Scavenger collects Heat Sink. Assault Rifle destroyed. R-06 Scavenger collects Aluminum Leg. Beam Rifle severed. Assault Rifle destroyed. L-31 Rogue destroyed. K-01 Serf collects debris. Acquired 43 matter. R-06 Scavenger collects Beam Rifle. K-01 Serf collects debris. Lgt. EM Pulse Cannon destroyed. K-01 Serf collects debris. G-34 Mercenary knocked back. K-01 Serf collects debris. Lgt. Cannon destroyed. Acquired 7 matter. Map ----- +----------------------------------------------------+ | ?????????????????????????????????????????????????? | | ?????????????????????????????????????????????????? | | ?????????????????????????????????????????????????? | | ?????????????????????????????????????????????????? | | ?????????????????????????????????????????????????? | | ?????????????????????????????????????????????????? | | ?????????????????????????????????????????????????? | | ?????????????????????????????????????????????????? | | ?????????????????????????????????????????????????? | | ?????????????????????????????????????????????????? | | ?????????????????????????+#####??????????????????? | | ?????????????????????????? #??????????????????? | | ?????????????????????????? =[#??????????######### | | ?????????????????????????? [ ###????##### | | ?????????????????????????? ## ##### # [ | | ?????????????????????????? ## ## # | | ?????????????????????????? ??# ?# # | | ???????????????????????####+###### ### + """ """ | | ???????????????????????# # """ """ | | ???????????????????????# # """ """ | | ???????????????????????# # | | ???????????????????????# ####################### | | ???????????????????????#% #?????????????????????? | | ???????????????????????# #?????????????????????? | | ???????????????????????#g #?????????????????????? | | ???????????????????????# @%#?????????????????????? | | ???????????????????????# #?????????????????????? | | ??????????????????????##g ##????????????????????? | | ??????????????????????# !#????????????????????? | | ????????????????? #????????????????????? | | ???????????? ^ #????????????????????? | | ??????????? #????????????????????? | | ??????????##+### %#### #????????????????????? | | ???????????????# ????#######????????????????????? | | ???????????????# ????????????????????????????????? | | ???????????????#?????????????????????????????????? | | ?????????????????????????????????????????????????? | | ?????????????????????????????????????????????????? | | ?????????????????????????????????????????????????? | | ?????????????????????????????????????????????????? | | ?????????????????????????????????????????????????? | | ?????????????????????????????????????????????????? | | ?????????????????????????????????????????????????? | | ?????????????????????????????????????????????????? | | ?????????????????????????????????????????????????? | | ?????????????????????????????????????????????????? | | ?????????????????????????????????????????????????? | | ?????????????????????????????????????????????????? | | ?????????????????????????????????????????????????? | | ?????????????????????????????????????????????????? | +----------------------------------------------------+ Best States ------------- Heat Dissipation 28 Energy Generation 10 Energy Capacity 250 Matter Stores 204 Matter Capacity 300 Sight Range 16 Terrain Scan Density 10 Armor Coverage 150 Evasion (%) 55 Recoil Reduction 2 Item Schematics ----------------- None Robot Schematics ------------------ None Fabricated ------------ Nothing Alien Tech Used ----------------- None Achievements -------------- None Challenges ------------ None Game ------ Seed MiningSpacefoldSpoofer Manual? 0 Play Time 00:13:12 Cumulative 4.3 hours Start 2024.06.09 @ 13:22:09 End 2024.06.09 @ 13:36:05 Sessions 1 Manual Loads 0 Difficulty Rogue Special Mode None Game No. 11 Rogue 11 Adventurer 0 Explorer 0 Win Type - Total 0 Types 0/0/0/0/0/0/0/0/0 Lore% 1 Gallery% 11 Achievement% 8 Wizard Run 0 Options --------- Layout 1 ASCII 1 Keyboard 0 Movement Mouse Keybinds 0 Fullscreen 1 Font 24/Proggy Map View 50x35 Zoom Use 0% Tactical HUD 0 Map Filters NONE Filters NONE Steam 0 RUN: 648b9578-09e2-4ce6-ace0-505369adf846